[Event "Titled Tuesday Blitz March 28 Early 2023"]
[White "Sanchez, German"]
[Black "Karamsetty, Jeevan"]
[WhiteFideId "4403959"]
[BlackFideId "2025337"]
[WhiteElo "1816"]
[BlackElo "2111"]
[Result "0-1"]
[Round "05"]
[TimeControl "180+2"]
[Date "2023.03.28"]
[WhiteClock "0:00:17"]
[BlackClock "0:00:14"]

1. e4 {[%clk 0:02:52]}  g6 {[%clk 0:03:00]} 2. Nf3 {[%clk 0:02:51]}  d6 {[%clk 0:02:56]} 3. d4 {[%clk 0:02:51]}  Nf6 {[%clk 0:02:56]} 4. Nc3 {[%clk 0:02:52]}  Bg7 {[%clk 0:02:56]} 5. h4 {[%clk 0:02:52]}  h5 {[%clk 0:02:42]} 6. Bc4 {[%clk 0:02:52]}  Nc6 {[%clk 0:02:39]} 7. Ng5 {[%clk 0:02:51]}  e6 {[%clk 0:02:34]} 8. d5 {[%clk 0:02:47]}  Ne5 {[%clk 0:02:29]} 9. Bb3 {[%clk 0:02:46]}  exd5 {[%clk 0:02:27]} 10. Nxd5 {[%clk 0:02:46]}  O-O {[%clk 0:02:26]} 11. Bf4 {[%clk 0:02:40]}  Nxd5 {[%clk 0:02:17]} 12. Bxd5 {[%clk 0:02:38]}  c6 {[%clk 0:02:16]} 13. Bb3 {[%clk 0:02:37]}  Qf6 {[%clk 0:02:10]} 14. Qd2 {[%clk 0:02:32]}  b5 {[%clk 0:02:00]} 15. O-O-O {[%clk 0:02:29]}  Nc4 {[%clk 0:01:59]} 16. e5 {[%clk 0:02:06]}  dxe5 {[%clk 0:01:38]} 17. Bxc4 {[%clk 0:02:05]}  exf4 {[%clk 0:01:37]} 18. Bxf7+ {[%clk 0:01:25]}  Rxf7 {[%clk 0:01:33]} 19. Qd8+ {[%clk 0:01:18]}  Rf8 {[%clk 0:01:31]} 20. Qxf6 {[%clk 0:01:07]}  Bxf6 {[%clk 0:01:32]} 21. Rd6 {[%clk 0:01:02]}  Bf5 {[%clk 0:01:18]} 22. Rxc6 {[%clk 0:00:54]}  Rac8 {[%clk 0:01:18]} 23. Rxc8 {[%clk 0:00:53]}  Rxc8 {[%clk 0:01:19]} 24. c3 {[%clk 0:00:54]}  b4 {[%clk 0:01:19]} 25. Kd2 {[%clk 0:00:34]}  bxc3+ {[%clk 0:01:16]} 26. bxc3 {[%clk 0:00:35]}  Bxc3+ {[%clk 0:01:13]} 27. Ke2 {[%clk 0:00:35]}  Re8+ {[%clk 0:01:05]} 28. Kf3 {[%clk 0:00:34]}  Bg4+ {[%clk 0:01:05]} 29. Kxf4 {[%clk 0:00:34]}  Be5+ {[%clk 0:00:52]} 30. Ke3 {[%clk 0:00:33]}  Bg3+ {[%clk 0:00:51]} 31. Kd2 {[%clk 0:00:27]}  Bxf2 {[%clk 0:00:49]} 32. Kc3 {[%clk 0:00:24]}  Re2 {[%clk 0:00:44]} 33. a4 {[%clk 0:00:21]}  a5 {[%clk 0:00:38]} 34. Kc4 {[%clk 0:00:20]}  Rb2 {[%clk 0:00:35]} 35. Kd5 {[%clk 0:00:18]}  Kg7 {[%clk 0:00:33]} 36. Rc1 {[%clk 0:00:16]}  Rb7 {[%clk 0:00:26]} 37. Kc6 {[%clk 0:00:12]}  Re7 {[%clk 0:00:23]} 38. Rf1 {[%clk 0:00:10]}  Bxh4 {[%clk 0:00:21]} 39. Nf3 {[%clk 0:00:05]}  Bxf3+ {[%clk 0:00:20]} 40. gxf3 {[%clk 0:00:06]}  Bf6 {[%clk 0:00:19]} 41. f4 {[%clk 0:00:05]}  h4 {[%clk 0:00:19]} 42. Kb5 {[%clk 0:00:06]}  Ra7 {[%clk 0:00:13]} 43. Kb6 {[%clk 0:00:05]}  Ra8 {[%clk 0:00:13]} 44. Rd1 {[%clk 0:00:05]}  h3 {[%clk 0:00:12]} 45. Rd7+ {[%clk 0:00:06]}  Kh6 {[%clk 0:00:12]} 46. Rd3 {[%clk 0:00:06]}  Kh5 {[%clk 0:00:09]} 47. Rxh3+ {[%clk 0:00:06]}  Kg4 {[%clk 0:00:10]} 48. Rb3 {[%clk 0:00:05]}  Kxf4 {[%clk 0:00:10]} 49. Kc6 {[%clk 0:00:05]}  g5 {[%clk 0:00:09]} 50. Kd5 {[%clk 0:00:05]}  g4 {[%clk 0:00:09]} 51. Ke6 {[%clk 0:00:06]}  Bd4 {[%clk 0:00:09]} 52. Rb1 {[%clk 0:00:06]}  Be3 {[%clk 0:00:09]} 53. Kd5 {[%clk 0:00:07]}  g3 {[%clk 0:00:09]} 54. Rf1+ {[%clk 0:00:07]}  Bf2 {[%clk 0:00:09]} 55. Kc4 {[%clk 0:00:06]}  Kf3 {[%clk 0:00:09]} 56. Kd3 {[%clk 0:00:06]}  g2 {[%clk 0:00:09]} 57. Rb1 {[%clk 0:00:07]}  g1=Q {[%clk 0:00:09]} 58. Rxg1 {[%clk 0:00:08]}  Bxg1 {[%clk 0:00:10]} 59. Kc4 {[%clk 0:00:08]}  Be3 {[%clk 0:00:10]} 60. Kb5 {[%clk 0:00:09]}  Bd2 {[%clk 0:00:10]} 61. Kb6 {[%clk 0:00:09]}  Bb4 {[%clk 0:00:11]} 62. Kb7 {[%clk 0:00:10]}  Rg8 {[%clk 0:00:12]} 63. Kb6 {[%clk 0:00:10]}  Rg1 {[%clk 0:00:13]} 64. Kb5 {[%clk 0:00:11]}  Ra1 {[%clk 0:00:14]} 65. Kc4 {[%clk 0:00:11]}  Rxa4 {[%clk 0:00:14]} 66. Kb5 {[%clk 0:00:12]}  Ra2 {[%clk 0:00:14]} 67. Kc4 {[%clk 0:00:13]}  Rc2+ {[%clk 0:00:15]} 68. Kb3 {[%clk 0:00:14]}  Rc8 {[%clk 0:00:15]} 69. Ka4 {[%clk 0:00:14]}  Be7 {[%clk 0:00:14]} 70. Kb3 {[%clk 0:00:15]}  Ke4 {[%clk 0:00:15]} 71. Ka4 {[%clk 0:00:16]}  Kd5 {[%clk 0:00:15]} 72. Kb5 {[%clk 0:00:17]}  Rb8+ {[%clk 0:00:15]} 73. Ka4 {[%clk 0:00:17]}  Kc5 {[%clk 0:00:14]} 74. Kxa5 {[%clk 0:00:17]}  Ra8# {[%clk 0:00:14]} 0-1


[Site "https://www.chess.com"]

[Event "Titled Tuesday Blitz March 28 Early 2023"]
[White "Kucuksari, Kaan"]
[Black "Saya, Ethan"]
[WhiteFideId "6380166"]
[BlackFideId "26095181"]
[WhiteElo "2364"]
[BlackElo "2150"]
[Result "0-1"]
[Round "05"]
[TimeControl "180+2"]
[Date "2023.03.28"]
[WhiteClock "0:01:52"]
[BlackClock "0:00:35"]

1. d4 {[%clk 0:02:57]}  Nf6 {[%clk 0:02:59]} 2. Bg5 {[%clk 0:02:53]}  Ne4 {[%clk 0:02:51]} 3. Bf4 {[%clk 0:02:53]}  c5 {[%clk 0:02:45]} 4. d5 {[%clk 0:02:52]}  d6 {[%clk 0:02:28]} 5. Nd2 {[%clk 0:02:48]}  Nxd2 {[%clk 0:02:27]} 6. Qxd2 {[%clk 0:02:49]}  Nd7 {[%clk 0:02:18]} 7. e4 {[%clk 0:02:49]}  g6 {[%clk 0:02:18]} 8. Bh6 {[%clk 0:02:45]}  Qb6 {[%clk 0:02:02]} 9. O-O-O {[%clk 0:02:36]}  Ne5 {[%clk 0:01:44]} 10. Bxf8 {[%clk 0:02:32]}  Kxf8 {[%clk 0:01:44]} 11. Qh6+ {[%clk 0:02:27]}  Kg8 {[%clk 0:01:41]} 12. Be2 {[%clk 0:02:26]}  Bd7 {[%clk 0:01:30]} 13. f4 {[%clk 0:02:25]}  Ng4 {[%clk 0:01:24]} 14. Bxg4 {[%clk 0:02:25]}  Bxg4 {[%clk 0:01:25]} 15. Nf3 {[%clk 0:02:25]}  c4 {[%clk 0:01:06]} 16. c3 {[%clk 0:02:19]}  Qe3+ {[%clk 0:01:01]} 17. Rd2 {[%clk 0:02:18]}  Bxf3 {[%clk 0:00:57]} 18. gxf3 {[%clk 0:02:19]}  Qxf3 {[%clk 0:00:57]} 19. Re1 {[%clk 0:02:16]}  b5 {[%clk 0:00:55]} 20. e5 {[%clk 0:02:09]}  b4 {[%clk 0:00:54]} 21. cxb4 {[%clk 0:02:06]}  c3 {[%clk 0:00:53]} 22. bxc3 {[%clk 0:02:02]}  Qxc3+ {[%clk 0:00:53]} 23. Kd1 {[%clk 0:02:02]}  Qf3+ {[%clk 0:00:48]} 24. Kc2 {[%clk 0:02:00]}  Rc8+ {[%clk 0:00:45]} 25. Kb1 {[%clk 0:02:01]}  Qc3 {[%clk 0:00:39]} 26. f5 {[%clk 0:01:52]}  Qxb4+ {[%clk 0:00:36]} 27. Ka1 {[%clk 0:01:52]}  Qc3+ {[%clk 0:00:35]} 28. Kb1 {[%clk 0:01:52]}  Rb8+ {[%clk 0:00:35]} 0-1


[Site "https://www.chess.com"]

[Event "Titled Tuesday Blitz March 28 Early 2023"]
[White "Van Osch, Mees"]
[Black "Krsnik Cohar, Ivan Vihor"]
[WhiteFideId "1035967"]
[BlackFideId "14520044"]
[WhiteElo "2324"]
[BlackElo "2414"]
[Result "0-1"]
[Round "05"]
[TimeControl "180+2"]
[Date "2023.03.28"]
[WhiteClock "0:01:38"]
[BlackClock "0:02:04"]

1. e4 {[%clk 0:02:50]}  c5 {[%clk 0:02:59]} 2. Nf3 {[%clk 0:02:49]}  g6 {[%clk 0:03:00]} 3. d4 {[%clk 0:02:49]}  cxd4 {[%clk 0:03:01]} 4. Nxd4 {[%clk 0:02:50]}  Nf6 {[%clk 0:03:01]} 5. Nc3 {[%clk 0:02:48]}  Nc6 {[%clk 0:03:02]} 6. Nxc6 {[%clk 0:02:45]}  bxc6 {[%clk 0:03:02]} 7. e5 {[%clk 0:02:45]}  Nh5 {[%clk 0:03:03]} 8. Be2 {[%clk 0:02:42]}  Ng7 {[%clk 0:03:02]} 9. Bf4 {[%clk 0:02:42]}  Ne6 {[%clk 0:03:02]} 10. Be3 {[%clk 0:02:37]}  Bg7 {[%clk 0:02:58]} 11. Qd2 {[%clk 0:02:37]}  Bxe5 {[%clk 0:02:55]} 12. O-O-O {[%clk 0:02:36]}  Qa5 {[%clk 0:02:54]} 13. f4 {[%clk 0:02:22]}  Bg7 {[%clk 0:02:47]} 14. Bc4 {[%clk 0:02:18]}  d5 {[%clk 0:02:42]} 15. Bb3 {[%clk 0:02:09]}  d4 {[%clk 0:02:38]} 16. Bxe6 {[%clk 0:02:07]}  dxc3 {[%clk 0:02:33]} 17. Bd7+ {[%clk 0:01:59]}  Kf8 {[%clk 0:02:33]} 18. Qd3 {[%clk 0:01:56]}  Qxa2 {[%clk 0:02:07]} 19. bxc3 {[%clk 0:01:54]}  Bxd7 {[%clk 0:02:04]} 20. Qxd7 {[%clk 0:01:48]}  Bxc3 {[%clk 0:02:03]} 21. Qb7 {[%clk 0:01:39]}  Qa1+ {[%clk 0:02:03]} 22. Qb1 {[%clk 0:01:38]}  Qa3+ {[%clk 0:02:04]} 23. Qb2 {[%clk 0:01:38]}  Qxb2# {[%clk 0:02:04]} 0-1


[Site "https://www.chess.com"]

[Event "Titled Tuesday Blitz March 28 Early 2023"]
[White "Estrada Nieto, Julian"]
[Black "drdaro"]
[WhiteFideId "5101018"]
[WhiteElo "2176"]
[BlackElo "2398"]
[Result "0-1"]
[Round "05"]
[TimeControl "180+2"]
[Date "2023.03.28"]
[WhiteClock "0:01:19"]
[BlackClock "0:02:08"]

1. e4 {[%clk 0:03:00]}  g6 {[%clk 0:02:56]} 2. d4 {[%clk 0:03:00]}  Nf6 {[%clk 0:02:55]} 3. Nc3 {[%clk 0:02:59]}  d5 {[%clk 0:02:55]} 4. e5 {[%clk 0:02:53]}  Ne4 {[%clk 0:02:56]} 5. Bd3 {[%clk 0:02:53]}  Nxc3 {[%clk 0:02:53]} 6. bxc3 {[%clk 0:02:53]}  c5 {[%clk 0:02:54]} 7. Nf3 {[%clk 0:02:44]}  Bg7 {[%clk 0:02:50]} 8. O-O {[%clk 0:02:43]}  c4 {[%clk 0:02:50]} 9. Be2 {[%clk 0:02:43]}  Bg4 {[%clk 0:02:51]} 10. Rb1 {[%clk 0:02:38]}  b6 {[%clk 0:02:50]} 11. Ng5 {[%clk 0:02:27]}  Bxe2 {[%clk 0:02:46]} 12. Qxe2 {[%clk 0:02:27]}  e6 {[%clk 0:02:46]} 13. Qf3 {[%clk 0:02:19]}  Qe7 {[%clk 0:02:45]} 14. Ba3 {[%clk 0:02:15]}  Qxg5 {[%clk 0:02:44]} 15. Bd6 {[%clk 0:02:06]}  Nc6 {[%clk 0:02:40]} 16. a4 {[%clk 0:02:05]}  Qf5 {[%clk 0:02:36]} 17. Qe2 {[%clk 0:01:57]}  Bf8 {[%clk 0:02:35]} 18. f3 {[%clk 0:01:48]}  O-O-O {[%clk 0:02:31]} 19. g4 {[%clk 0:01:46]}  Qf4 {[%clk 0:02:23]} 20. Bxf8 {[%clk 0:01:31]}  Rdxf8 {[%clk 0:02:24]} 21. Rb5 {[%clk 0:01:31]}  h5 {[%clk 0:02:19]} 22. a5 {[%clk 0:01:24]}  Nxa5 {[%clk 0:02:16]} 23. Rfb1 {[%clk 0:01:18]}  hxg4 {[%clk 0:02:11]} 24. fxg4 {[%clk 0:01:19]}  Rh4 {[%clk 0:02:08]} 0-1


[Site "https://www.chess.com"]

[Event "Titled Tuesday Blitz March 28 Early 2023"]
[White "Titichoca Daza, Daniel"]
[Black "Vallejo Diaz, Javier"]
[WhiteFideId "3309550"]
[BlackFideId "2256398"]
[WhiteElo "2095"]
[BlackElo "2513"]
[Result "1-0"]
[Round "05"]
[TimeControl "180+2"]
[Date "2023.03.28"]
[WhiteClock "0:01:15"]
[BlackClock "0:00:23"]

1. Nf3 {[%clk 0:03:00]}  Nf6 {[%clk 0:02:58]} 2. c4 {[%clk 0:02:59]}  c6 {[%clk 0:02:55]} 3. d4 {[%clk 0:02:58]}  d5 {[%clk 0:02:56]} 4. Nc3 {[%clk 0:02:58]}  dxc4 {[%clk 0:02:56]} 5. e3 {[%clk 0:02:57]}  b5 {[%clk 0:02:55]} 6. Ne5 {[%clk 0:02:49]}  Bb7 {[%clk 0:02:39]} 7. a4 {[%clk 0:02:45]}  a6 {[%clk 0:02:37]} 8. b3 {[%clk 0:02:41]}  Nbd7 {[%clk 0:02:12]} 9. axb5 {[%clk 0:02:36]}  cxb5 {[%clk 0:02:08]} 10. bxc4 {[%clk 0:02:33]}  b4 {[%clk 0:02:06]} 11. Nxd7 {[%clk 0:02:26]}  Qxd7 {[%clk 0:02:01]} 12. Na4 {[%clk 0:02:26]}  Qc7 {[%clk 0:01:55]} 13. c5 {[%clk 0:02:21]}  e5 {[%clk 0:01:48]} 14. Nb6 {[%clk 0:02:18]}  Rd8 {[%clk 0:01:46]} 15. Qa4+ {[%clk 0:02:09]}  Bc6 {[%clk 0:01:46]} 16. Qxb4 {[%clk 0:02:07]}  exd4 {[%clk 0:01:44]} 17. exd4 {[%clk 0:02:07]}  Be7 {[%clk 0:01:33]} 18. Be3 {[%clk 0:01:56]}  O-O {[%clk 0:01:32]} 19. Qa5 {[%clk 0:01:54]}  Ng4 {[%clk 0:01:27]} 20. Nc4 {[%clk 0:01:51]}  Qb7 {[%clk 0:01:16]} 21. Bd3 {[%clk 0:01:46]}  Rfe8 {[%clk 0:00:56]} 22. O-O {[%clk 0:01:41]}  Bxg2 {[%clk 0:00:53]} 23. c6 {[%clk 0:01:37]}  Qxc6 {[%clk 0:00:38]} 24. Qf5 {[%clk 0:01:35]}  Nf6 {[%clk 0:00:38]} 25. Ne5 {[%clk 0:01:27]}  Qd5 {[%clk 0:00:38]} 26. Bc4 {[%clk 0:01:25]}  Qb7 {[%clk 0:00:25]} 27. Nxf7 {[%clk 0:01:20]}  Rd5 {[%clk 0:00:22]} 28. Ne5 {[%clk 0:01:17]}  Bxf1 {[%clk 0:00:23]} 29. Qe6+ {[%clk 0:01:15]} 1-0


[Site "https://www.chess.com"]

[Event "Titled Tuesday Blitz March 28 Early 2023"]
[White "Thiel, Thomas"]
[Black "Sousa, Andre Ventura"]
[WhiteFideId "4615964"]
[BlackFideId "1917617"]
[WhiteElo "2220"]
[BlackElo "2348"]
[Result "0-1"]
[Round "05"]
[TimeControl "180+2"]
[Date "2023.03.28"]
[WhiteClock "0:00:02"]
[BlackClock "0:00:29"]

1. e4 {[%clk 0:02:54]}  e5 {[%clk 0:02:59]} 2. Nf3 {[%clk 0:02:50]}  Nc6 {[%clk 0:02:59]} 3. d4 {[%clk 0:02:48]}  exd4 {[%clk 0:03:00]} 4. Nxd4 {[%clk 0:02:48]}  Nf6 {[%clk 0:03:00]} 5. Nxc6 {[%clk 0:02:48]}  bxc6 {[%clk 0:03:00]} 6. e5 {[%clk 0:02:47]}  Qe7 {[%clk 0:03:01]} 7. Qe2 {[%clk 0:02:46]}  Nd5 {[%clk 0:03:01]} 8. h4 {[%clk 0:02:45]}  Qe6 {[%clk 0:02:57]} 9. g3 {[%clk 0:02:42]}  a5 {[%clk 0:02:53]} 10. Bh3 {[%clk 0:02:36]}  f5 {[%clk 0:02:40]} 11. exf6 {[%clk 0:02:33]}  Qxe2+ {[%clk 0:02:40]} 12. Kxe2 {[%clk 0:02:32]}  Ba6+ {[%clk 0:02:38]} 13. Kf3 {[%clk 0:02:22]}  Nxf6 {[%clk 0:02:27]} 14. Bg5 {[%clk 0:02:17]}  Bc5 {[%clk 0:02:18]} 15. Re1+ {[%clk 0:02:06]}  Kd8 {[%clk 0:02:16]} 16. Nc3 {[%clk 0:01:58]}  Rf8 {[%clk 0:02:14]} 17. Rad1 {[%clk 0:01:55]}  d5 {[%clk 0:01:53]} 18. Ne4 {[%clk 0:01:47]}  Be7 {[%clk 0:01:51]} 19. Nxf6 {[%clk 0:01:46]}  Bxf6 {[%clk 0:01:50]} 20. Bxf6+ {[%clk 0:01:44]}  Rxf6+ {[%clk 0:01:51]} 21. Kg2 {[%clk 0:01:42]}  Rb8 {[%clk 0:01:49]} 22. b3 {[%clk 0:01:41]}  a4 {[%clk 0:01:48]} 23. Re3 {[%clk 0:01:24]}  Bc8 {[%clk 0:01:38]} 24. Bxc8 {[%clk 0:01:04]}  Kxc8 {[%clk 0:01:32]} 25. Rd4 {[%clk 0:00:58]}  axb3 {[%clk 0:01:32]} 26. axb3 {[%clk 0:00:57]}  Kd7 {[%clk 0:01:26]} 27. Rg4 {[%clk 0:00:53]}  Rf7 {[%clk 0:01:23]} 28. Rf3 {[%clk 0:00:51]}  Rbf8 {[%clk 0:01:20]} 29. Rxg7 {[%clk 0:00:50]}  Rxg7 {[%clk 0:01:18]} 30. Rxf8 {[%clk 0:00:49]}  Kd6 {[%clk 0:01:18]} 31. Rf4 {[%clk 0:00:47]}  Kc5 {[%clk 0:01:13]} 32. c3 {[%clk 0:00:40]}  Kb5 {[%clk 0:00:53]} 33. g4 {[%clk 0:00:39]}  c5 {[%clk 0:00:52]} 34. Kg3 {[%clk 0:00:39]}  c4 {[%clk 0:00:46]} 35. bxc4+ {[%clk 0:00:36]}  dxc4 {[%clk 0:00:47]} 36. g5 {[%clk 0:00:34]}  Rd7 {[%clk 0:00:47]} 37. h5 {[%clk 0:00:27]}  Rd3+ {[%clk 0:00:46]} 38. Rf3 {[%clk 0:00:27]}  Rd1 {[%clk 0:00:44]} 39. Kf4 {[%clk 0:00:25]}  Rh1 {[%clk 0:00:39]} 40. h6 {[%clk 0:00:22]}  Ka4 {[%clk 0:00:36]} 41. Kf5 {[%clk 0:00:19]}  Kb3 {[%clk 0:00:35]} 42. g6 {[%clk 0:00:19]}  Rxh6 {[%clk 0:00:35]} 43. g7 {[%clk 0:00:19]}  Rg6 {[%clk 0:00:35]} 44. Rg3 {[%clk 0:00:17]}  Rxg7 {[%clk 0:00:34]} 45. Rxg7 {[%clk 0:00:17]}  Kxc3 {[%clk 0:00:35]} 46. Rxh7 {[%clk 0:00:16]}  c5 {[%clk 0:00:34]} 47. Rc7 {[%clk 0:00:13]}  Kd4 {[%clk 0:00:35]} 48. f4 {[%clk 0:00:12]}  c3 {[%clk 0:00:35]} 49. Rd7+ {[%clk 0:00:10]}  Ke3 {[%clk 0:00:36]} 50. Rd1 {[%clk 0:00:08]}  c4 {[%clk 0:00:33]} 51. Ke5 {[%clk 0:00:06]}  c2 {[%clk 0:00:29]} 52. Rg1 {[%clk 0:00:06]}  c3 {[%clk 0:00:28]} 53. f5 {[%clk 0:00:06]}  Kd2 {[%clk 0:00:28]} 54. f6 {[%clk 0:00:04]}  c1=Q {[%clk 0:00:28]} 55. Rxc1 {[%clk 0:00:02]}  Kxc1 {[%clk 0:00:29]} 0-1


[Site "https://www.chess.com"]

[Event "Titled Tuesday Blitz March 28 Early 2023"]
[White "Begunov, Konstantin"]
[Black "EdmundPlayer"]
[WhiteFideId "4118510"]
[WhiteElo "2079"]
[BlackElo "2217"]
[Result "0-1"]
[Round "05"]
[TimeControl "180+2"]
[Date "2023.03.28"]
[WhiteClock "0:00:01"]
[BlackClock "0:00:01"]

1. d4 {[%clk 0:03:00]}  Nf6 {[%clk 0:02:56]} 2. c4 {[%clk 0:03:00]}  g6 {[%clk 0:02:56]} 3. f3 {[%clk 0:02:59]}  d5 {[%clk 0:02:52]} 4. cxd5 {[%clk 0:03:00]}  Nxd5 {[%clk 0:02:53]} 5. e4 {[%clk 0:03:00]}  Nb6 {[%clk 0:02:53]} 6. Be3 {[%clk 0:03:00]}  Bg7 {[%clk 0:02:50]} 7. Nc3 {[%clk 0:03:00]}  Nc6 {[%clk 0:02:50]} 8. d5 {[%clk 0:02:58]}  Ne5 {[%clk 0:02:45]} 9. f4 {[%clk 0:02:58]}  Ned7 {[%clk 0:02:17]} 10. Nf3 {[%clk 0:02:54]}  c6 {[%clk 0:02:04]} 11. dxc6 {[%clk 0:02:51]}  bxc6 {[%clk 0:02:04]} 12. e5 {[%clk 0:02:37]}  O-O {[%clk 0:01:36]} 13. e6 {[%clk 0:02:09]}  fxe6 {[%clk 0:01:35]} 14. Nd4 {[%clk 0:02:09]}  Nf6 {[%clk 0:01:21]} 15. Nxc6 {[%clk 0:02:02]}  Qc7 {[%clk 0:01:12]} 16. Ne5 {[%clk 0:01:59]}  Nfd5 {[%clk 0:01:11]} 17. Qd4 {[%clk 0:01:32]}  Nxc3 {[%clk 0:00:37]} 18. Qxc3 {[%clk 0:01:18]}  Qxc3+ {[%clk 0:00:26]} 19. bxc3 {[%clk 0:01:17]}  Nd5 {[%clk 0:00:27]} 20. Bd4 {[%clk 0:00:45]}  Nxf4 {[%clk 0:00:24]} 21. g3 {[%clk 0:00:37]}  Bb7 {[%clk 0:00:23]} 22. Rg1 {[%clk 0:00:36]}  Nd5 {[%clk 0:00:16]} 23. Bh3 {[%clk 0:00:36]}  Nc7 {[%clk 0:00:13]} 24. Kd2 {[%clk 0:00:20]}  Bd5 {[%clk 0:00:12]} 25. c4 {[%clk 0:00:19]}  Bxe5 {[%clk 0:00:12]} 26. Bxe5 {[%clk 0:00:17]}  Bxc4 {[%clk 0:00:11]} 27. Bxc7 {[%clk 0:00:17]}  Rf2+ {[%clk 0:00:10]} 28. Kc3 {[%clk 0:00:14]}  Bd5 {[%clk 0:00:07]} 29. Be5 {[%clk 0:00:08]}  Rc8+ {[%clk 0:00:06]} 30. Kd3 {[%clk 0:00:08]}  Rxh2 {[%clk 0:00:05]} 31. Bg4 {[%clk 0:00:08]}  Rhc2 {[%clk 0:00:03]} 32. a4 {[%clk 0:00:03]}  Rf2 {[%clk 0:00:02]} 33. Rgc1 {[%clk 0:00:02]}  Rd8 {[%clk 0:00:02]} 34. Ke3 {[%clk 0:00:01]}  Rg2 {[%clk 0:00:01]} 0-1


[Site "https://www.chess.com"]

[Event "Titled Tuesday Blitz March 28 Early 2023"]
[White "Gutkin, Ilya"]
[Black "Manukyan, Sargis A."]
[WhiteFideId "16203470"]
[BlackFideId "13303970"]
[WhiteElo "2265"]
[BlackElo "2187"]
[Result "1-0"]
[Round "05"]
[TimeControl "180+2"]
[Date "2023.03.28"]
[WhiteClock "0:00:05"]
[BlackClock "0:00:04"]

1. Nf3 {[%clk 0:03:00]}  d5 {[%clk 0:02:59]} 2. g3 {[%clk 0:03:00]}  e6 {[%clk 0:03:00]} 3. Bg2 {[%clk 0:03:00]}  Nf6 {[%clk 0:03:01]} 4. d4 {[%clk 0:03:00]}  Be7 {[%clk 0:03:02]} 5. c4 {[%clk 0:03:01]}  O-O {[%clk 0:03:03]} 6. Qc2 {[%clk 0:03:01]}  dxc4 {[%clk 0:03:00]} 7. Qxc4 {[%clk 0:03:02]}  a6 {[%clk 0:03:00]} 8. Bf4 {[%clk 0:03:03]}  Nd5 {[%clk 0:02:54]} 9. Nc3 {[%clk 0:03:03]}  b5 {[%clk 0:02:45]} 10. Qd3 {[%clk 0:03:02]}  Bb7 {[%clk 0:02:39]} 11. O-O {[%clk 0:03:00]}  Nd7 {[%clk 0:02:31]} 12. Rfd1 {[%clk 0:02:54]}  h6 {[%clk 0:02:24]} 13. Rac1 {[%clk 0:02:44]}  Rc8 {[%clk 0:02:24]} 14. Ne4 {[%clk 0:02:41]}  Nb4 {[%clk 0:02:14]} 15. Qb1 {[%clk 0:02:40]}  Nd5 {[%clk 0:01:53]} 16. Nc5 {[%clk 0:02:29]}  Nxc5 {[%clk 0:01:26]} 17. dxc5 {[%clk 0:02:30]}  Qe8 {[%clk 0:01:16]} 18. Ne5 {[%clk 0:01:40]}  Nxf4 {[%clk 0:01:13]} 19. gxf4 {[%clk 0:01:41]}  Bxg2 {[%clk 0:01:11]} 20. Kxg2 {[%clk 0:01:41]}  f6 {[%clk 0:00:59]} 21. Ng6 {[%clk 0:00:44]}  Rf7 {[%clk 0:00:59]} 22. Qe4 {[%clk 0:00:43]}  Bf8 {[%clk 0:00:40]} 23. Nxf8 {[%clk 0:00:41]}  Rxf8 {[%clk 0:00:39]} 24. c6 {[%clk 0:00:33]}  f5 {[%clk 0:00:32]} 25. Qe5 {[%clk 0:00:30]}  Rf6 {[%clk 0:00:26]} 26. Kh1 {[%clk 0:00:30]}  Rg6 {[%clk 0:00:24]} 27. Rd7 {[%clk 0:00:21]}  Rg4 {[%clk 0:00:19]} 28. Rg1 {[%clk 0:00:17]}  Rxg1+ {[%clk 0:00:14]} 29. Kxg1 {[%clk 0:00:17]}  Qg6+ {[%clk 0:00:15]} 30. Kf1 {[%clk 0:00:16]}  Kh7 {[%clk 0:00:14]} 31. Rxc7 {[%clk 0:00:15]}  Rd8 {[%clk 0:00:15]} 32. Rd7 {[%clk 0:00:15]}  Rc8 {[%clk 0:00:14]} 33. c7 {[%clk 0:00:15]}  Qg4 {[%clk 0:00:14]} 34. Ke1 {[%clk 0:00:09]}  b4 {[%clk 0:00:08]} 35. Kd2 {[%clk 0:00:07]}  Qg2 {[%clk 0:00:07]} 36. f3 {[%clk 0:00:07]}  Qg1 {[%clk 0:00:06]} 37. Qxe6 {[%clk 0:00:06]}  Qb6 {[%clk 0:00:03]} 38. Qxb6 {[%clk 0:00:06]}  Re8 {[%clk 0:00:03]} 39. Qd6 {[%clk 0:00:05]}  Rg8 {[%clk 0:00:03]} 40. Qd4 {[%clk 0:00:04]}  h5 {[%clk 0:00:02]} 41. c8=Q {[%clk 0:00:05]}  h4 {[%clk 0:00:03]} 42. Qxg8+ {[%clk 0:00:04]}  Kh6 {[%clk 0:00:03]} 43. Qdxg7+ {[%clk 0:00:04]}  Kh5 {[%clk 0:00:04]} 44. Qg5# {[%clk 0:00:05]} 1-0


[Site "https://www.chess.com"]

[Event "Titled Tuesday Blitz March 28 Early 2023"]
[White "Pham, Le Thao Nguyen"]
[Black "BeReal24"]
[WhiteFideId "12401226"]
[WhiteElo "2282"]
[BlackElo "2319"]
[Result "1-0"]
[Round "05"]
[TimeControl "180+2"]
[Date "2023.03.28"]
[WhiteClock "0:00:25"]
[BlackClock "0:00:47"]

1. d4 {[%clk 0:02:45]}  Nf6 {[%clk 0:02:59]} 2. Nf3 {[%clk 0:02:43]}  e6 {[%clk 0:02:58]} 3. c4 {[%clk 0:02:42]}  d5 {[%clk 0:02:57]} 4. Nc3 {[%clk 0:02:41]}  Bb4 {[%clk 0:02:54]} 5. Bg5 {[%clk 0:02:41]}  h6 {[%clk 0:02:54]} 6. Bxf6 {[%clk 0:02:41]}  Qxf6 {[%clk 0:02:53]} 7. Qb3 {[%clk 0:02:34]}  c5 {[%clk 0:02:42]} 8. e3 {[%clk 0:02:28]}  O-O {[%clk 0:02:36]} 9. a3 {[%clk 0:02:23]}  Bxc3+ {[%clk 0:02:35]} 10. bxc3 {[%clk 0:02:11]}  dxc4 {[%clk 0:02:31]} 11. Bxc4 {[%clk 0:02:08]}  Nc6 {[%clk 0:02:32]} 12. Bb5 {[%clk 0:01:54]}  Bd7 {[%clk 0:02:22]} 13. O-O {[%clk 0:01:51]}  a6 {[%clk 0:02:16]} 14. Be2 {[%clk 0:01:48]}  Rab8 {[%clk 0:02:06]} 15. dxc5 {[%clk 0:01:39]}  e5 {[%clk 0:01:59]} 16. Rfd1 {[%clk 0:01:34]}  Be6 {[%clk 0:01:50]} 17. Qb6 {[%clk 0:01:34]}  e4 {[%clk 0:01:38]} 18. Nd4 {[%clk 0:01:29]}  Ne5 {[%clk 0:01:34]} 19. h3 {[%clk 0:01:07]}  Qg6 {[%clk 0:01:24]} 20. Kf1 {[%clk 0:01:03]}  Nd7 {[%clk 0:01:03]} 21. Qd6 {[%clk 0:00:59]}  Rfd8 {[%clk 0:01:00]} 22. Nxe6 {[%clk 0:00:51]}  fxe6 {[%clk 0:01:00]} 23. Bc4 {[%clk 0:00:45]}  Qf6 {[%clk 0:01:00]} 24. Qxe6+ {[%clk 0:00:42]}  Kh8 {[%clk 0:00:54]} 25. Rxd7 {[%clk 0:00:29]}  Qxc3 {[%clk 0:00:53]} 26. Rad1 {[%clk 0:00:26]}  Qxa3 {[%clk 0:00:47]} 27. Rxd8+ {[%clk 0:00:25]} 1-0


[Site "https://www.chess.com"]